[Event "*** Titled Tuesday Blitz"]
[Site "Chess.com"]
[Date "2020.05.19"]
[Round "5"]
[White "WhiteCapital80"]
[Black "OsorioFernando"]
[Result "1-0"]
[WhiteElo "2437"]
[BlackElo "2246"]
[TimeControl "180+1"]
[EndTime "12:56:19 PDT"]
[Termination "WhiteCapital80 won by resignation"]

1. e4 {[%clk 0:03:00.9]} 1... d5 {[%clk 0:02:59.2]} 2. exd5 {[%clk 0:03:00.9]}
2... Nf6 {[%clk 0:02:59]} 3. d4 {[%clk 0:03:00.7]} 3... Bg4 {[%clk 0:02:59]} 4.
Nf3 {[%clk 0:02:56.1]} 4... Qxd5 {[%clk 0:02:58.5]} 5. Be2 {[%clk 0:02:55.9]}
5... Nc6 {[%clk 0:02:57.9]} 6. Nc3 {[%clk 0:02:54]} 6... Qh5 {[%clk 0:02:56.3]}
7. h3 {[%clk 0:02:41.4]} 7... e6 {[%clk 0:02:21.7]} 8. O-O {[%clk 0:02:40.4]}
8... Bxh3 {[%clk 0:02:21.5]} 9. Ne5 {[%clk 0:02:20.6]} 9... Qh4 {[%clk
0:01:36.9]} 10. gxh3 {[%clk 0:02:17.7]} 10... Nxd4 {[%clk 0:00:59.4]} 11. Nb5
{[%clk 0:02:00.1]} 11... O-O-O {[%clk 0:00:33]} 12. Kg2 {[%clk 0:01:07.4]} 12...
Bc5 {[%clk 0:00:09.9]} 13. Nxd4 {[%clk 0:00:58.9]} 13... Rxd4 {[%clk 0:00:08.3]}
14. Nd3 {[%clk 0:00:57.3]} 14... Rd5 {[%clk 0:00:04.9]} 15. Bf3 {[%clk 0:00:55]}
15... Rdd8 {[%clk 0:00:02]} 16. Qd2 {[%clk 0:00:50.3]} 16... Bb6 {[%clk
0:00:02.1]} 17. Qg5 {[%clk 0:00:49.7]} 17... Qxg5+ {[%clk 0:00:01.9]} 18. Bxg5
{[%clk 0:00:49.6]} 18... h6 {[%clk 0:00:02.8]} 19. Be3 {[%clk 0:00:48.1]} 19...
g5 {[%clk 0:00:02.6]} 20. Bxb6 {[%clk 0:00:46.8]} 20... axb6 {[%clk 0:00:02.7]}
21. Ne5 {[%clk 0:00:42]} 21... Nd5 {[%clk 0:00:03.6]} 22. Nxf7 {[%clk
0:00:40.2]} 22... Nf4+ {[%clk 0:00:04.5]} 23. Kg3 {[%clk 0:00:37.3]} 1-0

[Event "*** Titled Tuesday Blitz"]
[Site "Chess.com"]
[Date "2020.05.19"]
[Round "5"]
[White "NikolaGry"]
[Black "Paralinch"]
[Result "1/2-1/2"]
[WhiteElo "2617"]
[BlackElo "2859"]
[TimeControl "180+1"]
[EndTime "12:56:20 PDT"]
[Termination "Game drawn by repetition"]

1. b3 {[%clk 0:03:00.9]} 1... c5 {[%clk 0:02:59.6]} 2. c4 {[%clk 0:02:59.9]}
2... Nc6 {[%clk 0:02:59.1]} 3. Bb2 {[%clk 0:03:00]} 3... e5 {[%clk 0:02:59.7]}
4. e3 {[%clk 0:03:00.1]} 4... g6 {[%clk 0:02:59.9]} 5. g3 {[%clk 0:02:48]} 5...
Bg7 {[%clk 0:02:59.6]} 6. Bg2 {[%clk 0:02:47.8]} 6... Nge7 {[%clk 0:03:00.1]} 7.
Nc3 {[%clk 0:02:45.8]} 7... O-O {[%clk 0:02:58.8]} 8. Nge2 {[%clk 0:02:45.8]}
8... d5 {[%clk 0:02:46.7]} 9. cxd5 {[%clk 0:02:40.7]} 9... Nb4 {[%clk
0:02:46.6]} 10. O-O {[%clk 0:02:37.9]} 10... Nexd5 {[%clk 0:02:46.2]} 11. Nxd5
{[%clk 0:02:37.2]} 11... Nxd5 {[%clk 0:02:46.7]} 12. Rc1 {[%clk 0:02:33.7]}
12... b6 {[%clk 0:02:46.9]} 13. d4 {[%clk 0:02:26.1]} 13... exd4 {[%clk
0:02:47.8]} 14. exd4 {[%clk 0:02:20.8]} 14... Ba6 {[%clk 0:02:43.7]} 15. Qd2
{[%clk 0:02:03.8]} 15... Bxe2 {[%clk 0:02:28.5]} 16. Qxe2 {[%clk 0:02:02.8]}
16... cxd4 {[%clk 0:02:28.8]} 17. Qf3 {[%clk 0:01:54.6]} 17... Nc3 {[%clk
0:02:14.5]} 18. Bxc3 {[%clk 0:01:51.4]} 18... dxc3 {[%clk 0:02:14.4]} 19. Qxa8
{[%clk 0:01:49.6]} 19... Qxa8 {[%clk 0:02:15.3]} 20. Bxa8 {[%clk 0:01:49.2]}
20... Rxa8 {[%clk 0:02:16.2]} 21. Rfd1 {[%clk 0:01:46.1]} 21... a5 {[%clk
0:02:10.1]} 22. a4 {[%clk 0:01:42.9]} 22... Rb8 {[%clk 0:01:56]} 23. Rd5 {[%clk
0:01:40.4]} 23... Rc8 {[%clk 0:01:42.4]} 24. Rc2 {[%clk 0:01:35.3]} 24... h5
{[%clk 0:01:35.3]} 25. h3 {[%clk 0:01:27.8]} 25... Rc6 {[%clk 0:01:34.4]} 26.
Kf1 {[%clk 0:01:26]} 26... Bf6 {[%clk 0:01:34.7]} 27. Ke2 {[%clk 0:01:23.1]}
27... Kg7 {[%clk 0:01:34.9]} 28. Kd3 {[%clk 0:01:19.2]} 28... Kf8 {[%clk
0:01:27.1]} 29. f4 {[%clk 0:01:18.4]} 29... Re6 {[%clk 0:01:20.5]} 30. Re2
{[%clk 0:01:13.4]} 30... Rc6 {[%clk 0:01:16.8]} 31. g4 {[%clk 0:01:11.6]} 31...
hxg4 {[%clk 0:01:14.4]} 32. hxg4 {[%clk 0:01:11.5]} 32... Be7 {[%clk 0:01:04.8]}
33. g5 {[%clk 0:00:59.7]} 33... Bd6 {[%clk 0:01:03.7]} 34. Rd4 {[%clk
0:00:54.7]} 34... Kg7 {[%clk 0:00:51.5]} 35. Kc2 {[%clk 0:00:28.6]} 35... Kf8
{[%clk 0:00:48.3]} 36. Kd3 {[%clk 0:00:27.5]} 36... Kg7 {[%clk 0:00:47.9]} 37.
Kc2 {[%clk 0:00:25.6]} 37... Kf8 {[%clk 0:00:47.9]} 38. Kd3 {[%clk 0:00:22.4]}
1/2-1/2

[Event "*** Titled Tuesday Blitz"]
[Site "Chess.com"]
[Date "2020.05.19"]
[Round "5"]
[White "MarcoRiehle"]
[Black "SaqoChess_Twitch"]
[Result "1-0"]
[WhiteElo "2645"]
[BlackElo "2399"]
[TimeControl "180+1"]
[EndTime "12:56:22 PDT"]
[Termination "MarcoRiehle won by resignation"]

1. e4 {[%clk 0:03:00.9]} 1... c5 {[%clk 0:02:58.3]} 2. a3 {[%clk 0:03:00.5]}
2... d6 {[%clk 0:02:57.6]} 3. b4 {[%clk 0:02:54.9]} 3... b6 {[%clk 0:02:57.4]}
4. Nc3 {[%clk 0:02:52.7]} 4... Nf6 {[%clk 0:02:56.6]} 5. Bc4 {[%clk 0:02:47.5]}
5... e6 {[%clk 0:02:56.6]} 6. f4 {[%clk 0:02:45.3]} 6... Be7 {[%clk 0:02:54.1]}
7. Nf3 {[%clk 0:02:43.5]} 7... O-O {[%clk 0:02:53]} 8. O-O {[%clk 0:02:43.4]}
8... d5 {[%clk 0:02:53.2]} 9. exd5 {[%clk 0:02:40.1]} 9... exd5 {[%clk
0:02:52.7]} 10. Be2 {[%clk 0:02:35.4]} 10... d4 {[%clk 0:02:51.5]} 11. Na2
{[%clk 0:02:26.6]} 11... Bb7 {[%clk 0:02:46.3]} 12. bxc5 {[%clk 0:02:20.1]}
12... bxc5 {[%clk 0:02:47.2]} 13. d3 {[%clk 0:02:14.4]} 13... Bd5 {[%clk
0:02:42.9]} 14. c4 {[%clk 0:02:07]} 14... Bc6 {[%clk 0:02:10.5]} 15. Ne5 {[%clk
0:02:02.9]} 15... Bb7 {[%clk 0:01:59.6]} 16. Rb1 {[%clk 0:02:01.8]} 16... Qc7
{[%clk 0:01:57.8]} 17. Rxb7 {[%clk 0:01:50.2]} 17... Qxb7 {[%clk 0:01:57.1]} 18.
Bf3 {[%clk 0:01:50.4]} 18... Qb1 {[%clk 0:01:49.9]} 19. Rf2 {[%clk 0:01:37.4]}
19... Nbd7 {[%clk 0:01:48]} 20. Rb2 {[%clk 0:01:32.3]} 20... Qa1 {[%clk
0:01:45.7]} 21. Bxa8 {[%clk 0:01:31.7]} 21... Rxa8 {[%clk 0:01:42.2]} 22. Nc6
{[%clk 0:01:24.8]} 22... Bd6 {[%clk 0:00:52.9]} 23. Qc2 {[%clk 0:01:22.9]} 23...
Re8 {[%clk 0:00:32.6]} 24. Rb1 {[%clk 0:01:17.6]} 24... Ng4 {[%clk 0:00:25.3]}
25. Bd2 {[%clk 0:01:06.5]} 25... Qxb1+ {[%clk 0:00:09.4]} 26. Qxb1 {[%clk
0:01:05.1]} 26... Re2 {[%clk 0:00:10.1]} 27. Qd1 {[%clk 0:00:56.7]} 27... Rf2
{[%clk 0:00:05.2]} 28. Qxg4 {[%clk 0:00:53.7]} 28... Rxd2 {[%clk 0:00:05.7]} 29.
Qxd7 {[%clk 0:00:54]} 29... h5 {[%clk 0:00:05.5]} 30. Qxd6 {[%clk 0:00:52.1]}
30... Rxa2 {[%clk 0:00:06.4]} 31. Qxc5 {[%clk 0:00:50.6]} 31... Kh7 {[%clk
0:00:07.3]} 32. Nxd4 {[%clk 0:00:48.2]} 32... Rd2 {[%clk 0:00:08.2]} 1-0

[Event "*** Titled Tuesday Blitz"]
[Site "Chess.com"]
[Date "2020.05.19"]
[Round "5"]
[White "chessdjw"]
[Black "DenishevM"]
[Result "1-0"]
[WhiteElo "2711"]
[BlackElo "2539"]
[TimeControl "180+1"]
[EndTime "12:56:24 PDT"]
[Termination "chessdjw won by resignation"]

1. e4 {[%clk 0:03:00.9]} 1... c5 {[%clk 0:02:59.5]} 2. Nf3 {[%clk 0:02:59.1]}
2... d6 {[%clk 0:02:59.9]} 3. Bb5+ {[%clk 0:02:58.3]} 3... Nd7 {[%clk
0:02:59.3]} 4. d4 {[%clk 0:02:57.5]} 4... cxd4 {[%clk 0:02:58.4]} 5. Qxd4 {[%clk
0:02:58.4]} 5... e5 {[%clk 0:02:48.8]} 6. Qd3 {[%clk 0:02:58.2]} 6... a6 {[%clk
0:02:47.6]} 7. Bxd7+ {[%clk 0:02:57.5]} 7... Bxd7 {[%clk 0:02:48.5]} 8. O-O
{[%clk 0:02:57.6]} 8... Be7 {[%clk 0:02:45.3]} 9. Nc3 {[%clk 0:02:55.2]} 9...
Rc8 {[%clk 0:02:30.9]} 10. Rd1 {[%clk 0:02:51.4]} 10... Be6 {[%clk 0:02:25.6]}
11. a4 {[%clk 0:02:29.3]} 11... h6 {[%clk 0:02:22.6]} 12. Nd2 {[%clk 0:02:28.7]}
12... Nf6 {[%clk 0:02:20.4]} 13. Nf1 {[%clk 0:02:26.9]} 13... O-O {[%clk
0:02:15.2]} 14. Ne3 {[%clk 0:02:27.1]} 14... Qc7 {[%clk 0:02:10]} 15. Bd2 {[%clk
0:02:24.3]} 15... Qc6 {[%clk 0:01:51.7]} 16. Ncd5 {[%clk 0:01:59.1]} 16... Bxd5
{[%clk 0:01:49.6]} 17. exd5 {[%clk 0:01:58.7]} 17... Qd7 {[%clk 0:01:40.5]} 18.
c4 {[%clk 0:01:55.2]} 18... Nh5 {[%clk 0:01:00.5]} 19. Nf5 {[%clk 0:01:51.2]}
19... Nf4 {[%clk 0:00:43.7]} 20. Bxf4 {[%clk 0:01:36.2]} 20... exf4 {[%clk
0:00:44.6]} 21. Qh3 {[%clk 0:01:11.5]} 21... Qc7 {[%clk 0:00:30.5]} 22. Qg4
{[%clk 0:00:59]} 22... Bf6 {[%clk 0:00:28.5]} 23. Nxh6+ {[%clk 0:00:57.7]} 23...
Kh7 {[%clk 0:00:28.7]} 24. Nf5 {[%clk 0:00:51.7]} 24... Bxb2 {[%clk 0:00:11.4]}
25. Ra3 {[%clk 0:00:50]} 25... g6 {[%clk 0:00:04.9]} 26. Rh3+ {[%clk 0:00:48.2]}
26... Kg8 {[%clk 0:00:04.8]} 27. Qh4 {[%clk 0:00:40.1]} 27... Rfe8 {[%clk
0:00:03.5]} 28. Qh7+ {[%clk 0:00:39.8]} 28... Kf8 {[%clk 0:00:04.1]} 29. Qh8+
{[%clk 0:00:40.7]} 1-0

[Event "*** Titled Tuesday Blitz"]
[Site "Chess.com"]
[Date "2020.05.19"]
[Round "5"]
[White "Lagmantr"]
[Black "Munkhzul_Turmunkh"]
[Result "0-1"]
[WhiteElo "2670"]
[BlackElo "2505"]
[TimeControl "180+1"]
[EndTime "12:56:26 PDT"]
[Termination "Munkhzul_Turmunkh won on time"]

1. e4 {[%clk 0:03:00]} 1... c5 {[%clk 0:02:59.9]} 2. Nf3 {[%clk 0:02:59.8]} 2...
d6 {[%clk 0:03:00.3]} 3. d4 {[%clk 0:02:59.7]} 3... cxd4 {[%clk 0:03:01.2]} 4.
Qxd4 {[%clk 0:02:56.2]} 4... Nc6 {[%clk 0:02:59.6]} 5. Bb5 {[%clk 0:02:56.6]}
5... Bd7 {[%clk 0:03:00.2]} 6. Bxc6 {[%clk 0:02:57]} 6... Bxc6 {[%clk
0:03:01.1]} 7. Nc3 {[%clk 0:02:57.5]} 7... Nf6 {[%clk 0:03:01.5]} 8. Bg5 {[%clk
0:02:58]} 8... e6 {[%clk 0:03:01.8]} 9. O-O-O {[%clk 0:02:58.3]} 9... Be7 {[%clk
0:03:01.9]} 10. Rhe1 {[%clk 0:02:58.6]} 10... O-O {[%clk 0:03:01.6]} 11. e5
{[%clk 0:02:58.9]} 11... dxe5 {[%clk 0:03:01.3]} 12. Qh4 {[%clk 0:02:59.3]}
12... Qa5 {[%clk 0:02:54.1]} 13. Nxe5 {[%clk 0:02:58.7]} 13... h6 {[%clk
0:02:47.3]} 14. Bxh6 {[%clk 0:02:13.8]} 14... gxh6 {[%clk 0:02:22.2]} 15. Qxh6
{[%clk 0:01:59]} 15... Ne4 {[%clk 0:02:20.8]} 16. Nxc6 {[%clk 0:01:21]} 16...
Qg5+ {[%clk 0:02:17.1]} 17. Qxg5+ {[%clk 0:01:06]} 17... Bxg5+ {[%clk 0:02:18]}
18. Kb1 {[%clk 0:00:42]} 18... Nxc3+ {[%clk 0:02:13.9]} 19. bxc3 {[%clk
0:00:42.9]} 19... bxc6 {[%clk 0:02:14.7]} 20. Rd3 {[%clk 0:00:40.7]} 20... Rab8+
{[%clk 0:02:12.2]} 21. Ka1 {[%clk 0:00:40.1]} 21... Bf6 {[%clk 0:02:08]} 22. Re4
{[%clk 0:00:31.4]} 22... Rfd8 {[%clk 0:02:05.5]} 23. Rg3+ {[%clk 0:00:06.3]}
23... Kf8 {[%clk 0:02:05.1]} 24. Re1 {[%clk 0:00:06.3]} 24... Rd2 {[%clk
0:02:02.6]} 25. Rf3 {[%clk 0:00:06.2]} 25... Ke7 {[%clk 0:02:02.2]} 26. Rc1
{[%clk 0:00:06.1]} 26... a5 {[%clk 0:01:53.4]} 27. a3 {[%clk 0:00:06.2]} 27...
Rb5 {[%clk 0:01:49.1]} 28. Ka2 {[%clk 0:00:06]} 28... Rc5 {[%clk 0:01:47.9]} 29.
Kb3 {[%clk 0:00:05.3]} 29... Bg5 {[%clk 0:01:42.2]} 30. Re1 {[%clk 0:00:02.4]}
30... Rb5+ {[%clk 0:01:41]} 31. Ka4 {[%clk 0:00:02.4]} 31... Rxc2 {[%clk
0:01:39.8]} 32. Re4 {[%clk 0:00:02.7]} 32... Bf6 {[%clk 0:01:30.4]} 33. Rc4
{[%clk 0:00:02.9]} 33... Rb7 {[%clk 0:01:06.3]} 34. Rxc6 {[%clk 0:00:02.7]}
34... Be5 {[%clk 0:01:06.8]} 35. Kxa5 {[%clk 0:00:02.2]} 35... Rcb2 {[%clk
0:01:06.9]} 36. Ka6 {[%clk 0:00:01.9]} 36... Bb8 {[%clk 0:01:05.2]} 0-1

[Event "*** Titled Tuesday Blitz"]
[Site "Chess.com"]
[Date "2020.05.19"]
[Round "5"]
[White "HaryKane"]
[Black "crazy_but_lazy"]
[Result "1-0"]
[WhiteElo "2558"]
[BlackElo "2342"]
[TimeControl "180+1"]
[EndTime "12:56:27 PDT"]
[Termination "HaryKane won by resignation"]

1. e4 {[%clk 0:03:00.9]} 1... c5 {[%clk 0:02:58.5]} 2. Nf3 {[%clk 0:03:00.5]}
2... d6 {[%clk 0:02:56.6]} 3. d4 {[%clk 0:03:00.8]} 3... cxd4 {[%clk 0:02:57.5]}
4. Nxd4 {[%clk 0:03:01.5]} 4... Nf6 {[%clk 0:02:57.6]} 5. Nc3 {[%clk 0:03:01.9]}
5... a6 {[%clk 0:02:57.7]} 6. Bc4 {[%clk 0:03:02.1]} 6... e6 {[%clk 0:02:54.2]}
7. Bb3 {[%clk 0:03:02.2]} 7... Be7 {[%clk 0:02:50.3]} 8. f3 {[%clk 0:03:02]}
8... O-O {[%clk 0:02:50.5]} 9. Be3 {[%clk 0:03:02.4]} 9... b5 {[%clk 0:02:45.8]}
10. Qd2 {[%clk 0:03:02.4]} 10... Qc7 {[%clk 0:02:42.9]} 11. g4 {[%clk
0:03:01.4]} 11... Nc6 {[%clk 0:02:39.5]} 12. g5 {[%clk 0:03:00.9]} 12... Nxd4
{[%clk 0:02:29.4]} 13. Bxd4 {[%clk 0:02:59.6]} 13... Nd7 {[%clk 0:02:23.3]} 14.
O-O-O {[%clk 0:02:57.7]} 14... Nc5 {[%clk 0:02:17.8]} 15. h4 {[%clk 0:02:55.7]}
15... Bb7 {[%clk 0:02:09]} 16. g6 {[%clk 0:02:49.1]} 16... Nxb3+ {[%clk
0:01:39.4]} 17. axb3 {[%clk 0:02:47.2]} 17... fxg6 {[%clk 0:01:38.8]} 18. Rdg1
{[%clk 0:02:34.8]} 18... Rxf3 {[%clk 0:01:26.7]} 19. h5 {[%clk 0:02:30.7]} 19...
g5 {[%clk 0:00:58]} 20. h6 {[%clk 0:02:15.5]} 20... g6 {[%clk 0:00:52.8]} 21.
Kb1 {[%clk 0:02:14.6]} 21... Raf8 {[%clk 0:00:52.1]} 22. Re1 {[%clk 0:02:11.3]}
22... b4 {[%clk 0:00:50.5]} 23. Na4 {[%clk 0:02:07.9]} 23... g4 {[%clk
0:00:26.5]} 24. Qxb4 {[%clk 0:01:52.2]} 24... R8f4 {[%clk 0:00:25.4]} 25. Bc3
{[%clk 0:01:45.7]} 25... d5 {[%clk 0:00:20.6]} 26. Qd4 {[%clk 0:01:35.1]} 26...
Bf6 {[%clk 0:00:21]} 27. Qa7 {[%clk 0:01:30.2]} 27... dxe4 {[%clk 0:00:15.6]}
28. Nc5 {[%clk 0:01:21.3]} 28... Bxc3 {[%clk 0:00:13]} 29. bxc3 {[%clk
0:01:18.8]} 29... Rf7 {[%clk 0:00:12.6]} 30. Rd1 {[%clk 0:01:09.3]} 30... e3
{[%clk 0:00:10.7]} 31. Nxe6 {[%clk 0:01:06.8]} 31... Qe7 {[%clk 0:00:08.9]} 32.
Rd8+ {[%clk 0:01:03.2]} 32... Rf8 {[%clk 0:00:08.9]} 33. Rxf8+ {[%clk
0:01:02.6]} 33... Rxf8 {[%clk 0:00:09.8]} 34. Nxf8 {[%clk 0:01:02.2]} 34... Qxf8
{[%clk 0:00:07.6]} 35. Qxb7 {[%clk 0:00:55.5]} 35... e2 {[%clk 0:00:07.8]} 36.
Qd5+ {[%clk 0:00:53.3]} 36... Kh8 {[%clk 0:00:06.6]} 37. Qe5+ {[%clk 0:00:52.8]}
1-0

[Event "*** Titled Tuesday Blitz"]
[Site "Chess.com"]
[Date "2020.05.19"]
[Round "5"]
[White "luizwas"]
[Black "ChronicUnhappiness"]
[Result "0-1"]
[WhiteElo "1819"]
[BlackElo "2282"]
[TimeControl "180+1"]
[EndTime "12:56:27 PDT"]
[Termination "ChronicUnhappiness won by checkmate"]

1. e4 {[%clk 0:03:00.9]} 1... c5 {[%clk 0:02:59]} 2. Nf3 {[%clk 0:02:59.8]} 2...
Nc6 {[%clk 0:02:57.8]} 3. d4 {[%clk 0:02:57.8]} 3... cxd4 {[%clk 0:02:56.8]} 4.
Nxd4 {[%clk 0:02:58.3]} 4... Nf6 {[%clk 0:02:56.2]} 5. Nc3 {[%clk 0:02:58]} 5...
e5 {[%clk 0:02:55.9]} 6. Ndb5 {[%clk 0:02:56.4]} 6... d6 {[%clk 0:02:55.9]} 7.
Nd5 {[%clk 0:02:54.7]} 7... Nxd5 {[%clk 0:02:54.1]} 8. exd5 {[%clk 0:02:55.6]}
8... Nb8 {[%clk 0:02:54.5]} 9. c4 {[%clk 0:02:54]} 9... Be7 {[%clk 0:02:53.4]}
10. Bd3 {[%clk 0:02:48.4]} 10... O-O {[%clk 0:02:52.4]} 11. O-O {[%clk
0:02:45.3]} 11... a6 {[%clk 0:02:51.7]} 12. Nc3 {[%clk 0:02:43]} 12... Nd7
{[%clk 0:02:51.5]} 13. Qg4 {[%clk 0:02:39.2]} 13... g6 {[%clk 0:02:37.2]} 14.
Bh6 {[%clk 0:02:36.6]} 14... f5 {[%clk 0:02:36]} 15. Qh3 {[%clk 0:02:02.5]}
15... Re8 {[%clk 0:02:23.3]} 16. f4 {[%clk 0:02:00.5]} 16... e4 {[%clk
0:02:21.9]} 17. Be2 {[%clk 0:01:54.8]} 17... Qb6+ {[%clk 0:02:15.6]} 18. Kh1
{[%clk 0:01:51.1]} 18... Qxb2 {[%clk 0:02:12]} 19. Rab1 {[%clk 0:01:51.6]} 19...
Qa3 {[%clk 0:02:08.2]} 20. g4 {[%clk 0:01:00.5]} 20... Nf6 {[%clk 0:01:33.5]}
21. Rg1 {[%clk 0:00:50.6]} 21... Nxg4 {[%clk 0:01:18.5]} 22. Bxg4 {[%clk
0:00:35.7]} 22... fxg4 {[%clk 0:01:17.3]} 23. Qe3 {[%clk 0:00:28.4]} 23... Bf6
{[%clk 0:01:12.8]} 24. Nxe4 {[%clk 0:00:16.4]} 24... Qxe3 {[%clk 0:01:01.8]} 25.
Nxf6+ {[%clk 0:00:16.8]} 25... Kf7 {[%clk 0:01:00.9]} 26. Nxe8 {[%clk
0:00:15.2]} 26... Qe4+ {[%clk 0:00:56.9]} 27. Rg2 {[%clk 0:00:14.4]} 27... Qxe8
{[%clk 0:00:54.4]} 28. Kg1 {[%clk 0:00:13.5]} 28... Bf5 {[%clk 0:00:53.3]} 29.
Rd1 {[%clk 0:00:12.3]} 29... Qe3+ {[%clk 0:00:51.6]} 30. Kf1 {[%clk 0:00:11.3]}
30... Bd3+ {[%clk 0:00:50.2]} 31. Re2 {[%clk 0:00:09.1]} 31... Qxe2+ {[%clk
0:00:48.7]} 32. Kg1 {[%clk 0:00:08.3]} 32... Qxd1+ {[%clk 0:00:48]} 33. Kg2
{[%clk 0:00:09.2]} 33... Qf3+ {[%clk 0:00:47.3]} 34. Kg1 {[%clk 0:00:08.5]}
34... Qf1# {[%clk 0:00:47.1]} 0-1

[Event "*** Titled Tuesday Blitz"]
[Site "Chess.com"]
[Date "2020.05.19"]
[Round "5"]
[White "Off-War"]
[Black "Herracek"]
[Result "1-0"]
[WhiteElo "2749"]
[BlackElo "2552"]
[TimeControl "180+1"]
[EndTime "12:56:29 PDT"]
[Termination "Off-War won by checkmate"]

1. d4 {[%clk 0:03:00.9]} 1... Nf6 {[%clk 0:02:59.6]} 2. c4 {[%clk 0:03:01.4]}
2... e5 {[%clk 0:02:59.9]} 3. Nc3 {[%clk 0:03:02]} 3... exd4 {[%clk 0:02:58.9]}
4. Qxd4 {[%clk 0:03:02.6]} 4... Nc6 {[%clk 0:02:59.3]} 5. Qd2 {[%clk 0:03:02.7]}
5... Bb4 {[%clk 0:02:55.1]} 6. g3 {[%clk 0:02:56.9]} 6... Ne4 {[%clk 0:02:47.7]}
7. Qc2 {[%clk 0:02:56.5]} 7... Nxc3 {[%clk 0:02:38.2]} 8. bxc3 {[%clk
0:02:55.3]} 8... Bc5 {[%clk 0:02:38.7]} 9. Bg2 {[%clk 0:02:53.4]} 9... O-O
{[%clk 0:02:38.6]} 10. Nf3 {[%clk 0:02:51.8]} 10... d6 {[%clk 0:02:39]} 11. O-O
{[%clk 0:02:48.7]} 11... h6 {[%clk 0:02:37.4]} 12. Rd1 {[%clk 0:02:47.2]} 12...
Be6 {[%clk 0:02:35.4]} 13. Qa4 {[%clk 0:02:39.8]} 13... Qf6 {[%clk 0:02:31.5]}
14. Bb2 {[%clk 0:02:35]} 14... Ne5 {[%clk 0:02:26.6]} 15. Nd4 {[%clk 0:01:57.3]}
15... Nxc4 {[%clk 0:02:22]} 16. Bc1 {[%clk 0:01:57.9]} 16... Nb6 {[%clk
0:02:10.6]} 17. Qc2 {[%clk 0:01:54.3]} 17... Bd5 {[%clk 0:01:48.2]} 18. e4
{[%clk 0:01:49]} 18... Bc4 {[%clk 0:01:46.7]} 19. a4 {[%clk 0:01:49.9]} 19... a5
{[%clk 0:01:41.4]} 20. Be3 {[%clk 0:01:47.4]} 20... Rfe8 {[%clk 0:01:39.3]} 21.
Nf5 {[%clk 0:01:42.5]} 21... Bxe3 {[%clk 0:01:35.3]} 22. Nxe3 {[%clk 0:01:43.4]}
22... Be6 {[%clk 0:01:35.3]} 23. f4 {[%clk 0:01:43.6]} 23... Rad8 {[%clk
0:01:30]} 24. c4 {[%clk 0:01:40.3]} 24... Qe7 {[%clk 0:01:16.3]} 25. Rd4 {[%clk
0:01:29]} 25... Bd7 {[%clk 0:01:15.3]} 26. Qd2 {[%clk 0:01:19.5]} 26... Bxa4
{[%clk 0:01:07.9]} 27. Qxa5 {[%clk 0:01:15]} 27... Ra8 {[%clk 0:01:07]} 28. Qd2
{[%clk 0:01:08.6]} 28... Bc6 {[%clk 0:01:06.6]} 29. Re1 {[%clk 0:01:04.9]} 29...
Ra3 {[%clk 0:01:04]} 30. Qc1 {[%clk 0:01:00.3]} 30... Rea8 {[%clk 0:01:02.3]}
31. Rdd1 {[%clk 0:00:56.6]} 31... Qf6 {[%clk 0:00:57.7]} 32. e5 {[%clk
0:00:54.2]} 32... dxe5 {[%clk 0:00:57.3]} 33. Nd5 {[%clk 0:00:52.6]} 33... Bxd5
{[%clk 0:00:54.3]} 34. fxe5 {[%clk 0:00:52.2]} 34... Qg5 {[%clk 0:00:43.5]} 35.
cxd5 {[%clk 0:00:49.1]} 35... Qxc1 {[%clk 0:00:20.2]} 36. Rxc1 {[%clk 0:00:50]}
36... Rd3 {[%clk 0:00:19]} 37. Be4 {[%clk 0:00:50.5]} 37... Rd4 {[%clk
0:00:18.8]} 38. Rxc7 {[%clk 0:00:50.5]} 38... Nxd5 {[%clk 0:00:18.8]} 39. Rd7
{[%clk 0:00:46.8]} 39... Ra5 {[%clk 0:00:18.2]} 40. Rd8# {[%clk 0:00:46.8]} 1-0

[Event "*** Titled Tuesday Blitz"]
[Site "Chess.com"]
[Date "2020.05.19"]
[Round "5"]
[White "marabu44"]
[Black "andriipalchuk"]
[Result "0-1"]
[WhiteElo "2269"]
[BlackElo "1965"]
[TimeControl "180+1"]
[EndTime "12:56:31 PDT"]
[Termination "andriipalchuk won on time"]

1. Nf3 {[%clk 0:03:00.9]} 1... c6 {[%clk 0:02:58.1]} 2. d4 {[%clk 0:02:58.7]}
2... d5 {[%clk 0:02:59]} 3. c4 {[%clk 0:02:58]} 3... Nf6 {[%clk 0:02:59.5]} 4.
Nc3 {[%clk 0:02:57.2]} 4... dxc4 {[%clk 0:02:59.8]} 5. a4 {[%clk 0:02:53]} 5...
Bf5 {[%clk 0:02:58.8]} 6. e3 {[%clk 0:02:44.1]} 6... e6 {[%clk 0:02:58.3]} 7.
Bxc4 {[%clk 0:02:42.5]} 7... Nbd7 {[%clk 0:02:56.7]} 8. O-O {[%clk 0:02:34.3]}
8... Bd6 {[%clk 0:02:53.9]} 9. Re1 {[%clk 0:02:27.1]} 9... Bg6 {[%clk
0:02:53.6]} 10. e4 {[%clk 0:02:26.3]} 10... e5 {[%clk 0:02:53.6]} 11. Bg5 {[%clk
0:02:16.6]} 11... O-O {[%clk 0:02:48.2]} 12. d5 {[%clk 0:02:05.1]} 12... Qc7
{[%clk 0:02:18.4]} 13. Rc1 {[%clk 0:01:56.5]} 13... Rac8 {[%clk 0:02:06.7]} 14.
dxc6 {[%clk 0:01:53.7]} 14... bxc6 {[%clk 0:02:07.6]} 15. Rc2 {[%clk 0:01:31.1]}
15... Qb8 {[%clk 0:01:58.4]} 16. Rd2 {[%clk 0:01:26.3]} 16... Bc5 {[%clk
0:01:52.8]} 17. Rxd7 {[%clk 0:01:14.5]} 17... Nxd7 {[%clk 0:01:53.7]} 18. Qxd7
{[%clk 0:01:11.5]} 18... Qxb2 {[%clk 0:01:53.5]} 19. Ne2 {[%clk 0:00:28.8]}
19... Bxe4 {[%clk 0:01:27.4]} 20. Bxf7+ {[%clk 0:00:18.2]} 20... Kh8 {[%clk
0:01:27]} 21. Be6 {[%clk 0:00:18.2]} 21... Rce8 {[%clk 0:01:12.6]} 22. Bf7
{[%clk 0:00:15.6]} 22... Rb8 {[%clk 0:01:04.1]} 23. Bh4 {[%clk 0:00:11.9]} 23...
Rb7 {[%clk 0:00:59.8]} 24. Qg4 {[%clk 0:00:06.1]} 24... Bxf3 {[%clk 0:00:53.8]}
25. Qxf3 {[%clk 0:00:05.2]} 25... Rbxf7 {[%clk 0:00:51.5]} 26. Qxc6 {[%clk
0:00:05]} 26... Bxf2+ {[%clk 0:00:46.6]} 27. Bxf2 {[%clk 0:00:04.6]} 27... Rxf2
{[%clk 0:00:47.3]} 28. Qc5 {[%clk 0:00:04.7]} 28... Qd2 {[%clk 0:00:34.1]} 0-1